bitfinex/quotes_SOLUSD_20250207
["timestamp","ask_amount","ask_price","bid_price","bid_amount"]
[1738945904881,0.063,197.3,197.24,24.67076348]
[1738945905106,0.063,197.3,197.25,44.67076348]
[1738945905506,0.063,197.3,197.25,20.0]
[1738945905724,0.063,197.3,197.22,5.1002]
[1738945905725,24.67076348,197.28,197.22,5.1002]
[1738945905910,0.063,197.3,197.22,5.1002]
[1738945905911,38.08261201,197.27,197.22,0.03]
[1738945907090,13.41184853,197.27,197.22,0.03]
[1738945907296,24.73376348,197.3,197.22,24.70076348]
[1738945907605,0.063,197.3,197.23,24.67076348]
[1738945907903,38.14561201,197.3,197.22,44.70076348]
[1738945908382,38.14561201,197.3,197.23,5.0702]
[1738945908383,81.3,197.29,197.23,5.0702]
[1738945909203,38.08261201,197.28,197.23,5.0702]
[1738945909880,81.3,197.29,197.23,29.74096348]
[1738945910379,81.3,197.29,197.25,5.0697]
[1738945910580,81.3,197.29,197.26,24.67076348]
[1738945911187,81.3,197.29,197.25,5.0697]
[1738945911582,81.3,197.29,197.26,24.67076348]
[1738945912582,81.3,197.29,197.27,5.0691]
[1738945914288,81.3,197.29,197.24,26.25246348]
[1738945914489,81.3,197.29,197.25,5.0697]
[1738945915584,24.67076348,197.26,197.22,0.03]
[1738945915916,13.41184853,197.27,197.22,0.03]
[1738945915917,24.67076348,197.25,197.22,0.03]
[1738945916415,24.67076348,197.23,197.22,0.03]
[1738945916600,38.08261201,197.23,197.22,0.03]
[1738945917114,105.97076348,197.24,197.22,0.03]
[1738945918614,13.41184853,197.23,197.22,0.03]
[1738945918920,105.97076348,197.24,197.22,0.03]
[1738945920219,24.67076348,197.23,197.22,0.03]
[1738945920739,42.13871201,197.23,197.22,0.03]
[1738945922722,13.41184853,197.23,197.22,0.03]
[1738945922924,42.13871201,197.23,197.22,0.03]
[1738945923709,38.08261201,197.23,197.22,0.03]
[1738945923908,81.3,197.24,197.22,0.03]
[1738945924413,105.97076348,197.24,197.22,0.03]
[1738945924614,24.67076348,197.23,197.22,0.03]
[1738945924789,105.97076348,197.24,197.22,0.03]
[1738945924989,81.3,197.24,197.22,0.03]
[1738945926119,81.3,197.24,197.22,24.70076348]
[1738945926415,4.1177,197.31,197.23,24.67076348]
[1738945926416,81.363,197.31,197.23,24.67076348]
[1738945926591,38.14561201,197.3,197.23,24.67076348]
[1738945927097,13.47484853,197.3,197.24,24.67076348]
[1738945927510,24.67076348,197.28,197.22,0.03]
[1738945928420,13.41184853,197.28,197.22,24.70076348]
[1738945928924,13.41184853,197.28,197.23,5.0702]
[1738945929099,24.67076348,197.28,197.23,5.0702]
[1738945929423,38.08261201,197.27,197.22,0.03]
[1738945929620,24.67076348,197.26,197.22,0.03]
[1738945929928,24.67076348,197.29,197.22,29.77116348]
[1738945930219,0.063,197.3,197.24,24.67076348]
[1738945930401,24.73376348,197.3,197.23,24.67076348]
[1738945930606,0.063,197.3,197.26,24.67076348]
[1738945930913,0.063,197.3,197.25,29.74016348]
[1738945931219,0.063,197.3,197.26,24.67076348]
[1738945931427,0.063,197.3,197.25,29.74016348]
[1738945931631,0.063,197.3,197.25,5.0694]
[1738945931933,24.73376348,197.3,197.25,5.0694]
[1738945932101,0.063,197.3,197.25,5.0694]
[1738945932294,13.47484853,197.3,197.23,5.0699]
[1738945932492,24.67076348,197.27,197.23,5.0699]
[1738945932693,15.42504104,197.25,197.22,0.03]
[1738945932892,28.83688957,197.23,197.22,0.03]
[1738945933115,32.89298957,197.23,197.22,0.03]
[1738945933802,15.42504104,197.23,197.22,0.03]
[1738945934132,32.89298957,197.23,197.22,0.03]
[1738945935222,15.42504104,197.24,197.22,0.03]
[1738945935410,15.42504104,197.26,197.22,0.03]
[1738945935922,13.41184853,197.25,197.22,0.03]
[1738945936123,15.42504104,197.24,197.22,0.03]
[1738945936709,28.83688957,197.25,197.22,0.03]
[1738945936911,15.42504104,197.25,197.22,0.03]
[1738945937212,15.42504104,197.26,197.22,0.03]
[1738945937721,83.11498,197.29,197.22,0.03]
[1738945937722,96.72504104,197.29,197.22,0.03]
[1738945937901,96.72504104,197.29,197.22,15.45504104]
[1738945938101,81.3,197.29,197.23,15.42504104]
[1738945938304,81.3,197.29,197.24,5.0699]
[1738945938512,81.3,197.29,197.25,15.42504104]
[1738945938803,81.3,197.29,197.24,20.49494104]
[1738945939004,0.063,197.3,197.26,15.42504104]
[1738945939213,0.063,197.3,197.28,15.42504104]
[1738945939520,0.063,197.26,197.25,1.0]
[1738945940126,0.063,197.26,197.24,17.7448]
[1738945940127,0.063,197.26,197.24,20.49494104]
[1738945940732,0.063,197.26,197.25,24.66454734]
[1738945941417,0.063,197.26,197.24,5.0699]
[1738945941610,0.063,197.26,197.22,0.03]
[1738945941611,24.72754734,197.26,197.22,0.03]
[1738945941831,0.063,197.26,197.22,0.03]
[1738945942002,24.72754734,197.26,197.22,0.03]
[1738945942204,24.66454734,197.25,197.22,0.03]
[1738945942805,24.72754734,197.26,197.22,0.03]
[1738945943222,38.07639587,197.25,197.22,0.03]
[1738945943645,24.66454734,197.24,197.22,0.03]
[1738945943819,38.07639587,197.23,197.22,0.03]
[1738945944133,13.41184853,197.23,197.22,0.03]
[1738945944511,4.36958,197.26,197.22,0.03]
[1738945944512,0.063,197.26,197.22,0.03]
[1738945944709,38.13939587,197.26,197.22,0.03]
[1738945945415,38.07639587,197.23,197.22,0.03]
[1738945946413,24.66454734,197.23,197.22,0.03]
[1738945946938,38.07639587,197.23,197.22,0.03]
[1738945947124,24.66454734,197.24,197.22,0.03]
[1738945947438,38.07639587,197.23,197.22,0.03]
[1738945948615,42.38347587,197.23,197.22,0.03]
[1738945949434,43.33447098,197.23,197.22,0.03]
[1738945950529,42.38347587,197.23,197.22,0.03]
[1738945952108,13.66282853,197.22,197.2,0.03]
[1738945952344,21.52022853,197.19,197.18,0.03]
[1738945952656,46.18477587,197.19,197.18,0.03]
[1738945952860,47.13607545,197.19,197.18,0.03]
[1738945953057,51.19307545,197.19,197.18,0.03]
[1738945953217,13.66282853,197.18,197.15,0.063]
[1738945953554,35.97419981,197.19,197.15,0.063]
[1738945953755,81.3,197.17,197.15,0.063]
[1738945954928,81.3,197.17,197.15,24.72754734]
[1738945955124,13.41184853,197.21,197.16,5.072]
[1738945955125,94.71184853,197.21,197.16,5.072]
[1738945955326,81.3,197.21,197.16,5.072]
[1738945955533,0.063,197.26,197.17,24.66454734]
[1738945955534,24.66454734,197.25,197.17,24.66454734]
[1738945955717,24.66454734,197.23,197.16,29.73654734]
[1738945955914,38.07639587,197.22,197.15,24.72754734]
[1738945956120,13.41184853,197.21,197.15,5.1352]
[1738945956415,38.07639587,197.24,197.16,24.66454734]
[1738945956640,38.07639587,197.24,197.17,24.66454734]
[1738945957143,38.07639587,197.24,197.16,24.66454734]
[1738945957347,38.07639587,197.24,197.15,0.063]
[1738945957348,24.66454734,197.2,197.17,20.0]
[1738945957532,13.41184853,197.19,197.15,0.063]
[1738945957917,24.66454734,197.2,197.15,20.063]
[1738945958223,24.66454734,197.2,197.15,0.063]
[1738945958416,13.41184853,197.2,197.15,0.063]
[1738945958835,24.66454734,197.22,197.15,29.79964734]
[1738945959040,38.07639587,197.21,197.15,5.1351]
[1738945959639,24.66454734,197.2,197.15,20.063]
[1738945959949,38.07639587,197.21,197.15,5.1352]
[1738945960339,13.41184853,197.21,197.15,29.79974734]
[1738945960649,13.41184853,197.21,197.15,5.1352]
[1738945960953,13.41184853,197.19,197.15,0.063]
[1738945961252,24.66454734,197.17,197.15,0.063]
[1738945962149,120.57846721,197.16,197.15,0.063]
[1738945962340,119.62737587,197.16,197.15,0.063]
[1738945962656,38.32737587,197.16,197.15,0.063]
[1738945962953,13.66282853,197.14,197.13,0.063]
[1738945963123,42.38577587,197.12,197.11,0.03]
[1738945963320,43.33738444,197.12,197.11,0.03]
[1738945963751,38.07639587,197.12,197.11,0.03]
[1738945965064,43.33723095,197.12,197.11,0.03]
[1738945966143,39.02785095,197.12,197.11,0.03]
[1738945966346,38.07639587,197.12,197.11,0.03]
[1738945967153,31.10064734,197.19,197.11,24.69454734]
[1738945967455,24.66454734,197.18,197.11,24.69454734]
[1738945967638,13.41184853,197.17,197.11,0.03]
[1738945967840,13.41184853,197.16,197.11,0.03]
[1738945968053,38.07639587,197.16,197.11,0.03]
[1738945968242,38.07639587,197.16,197.11,20.03]
[1738945968444,24.66454734,197.14,197.11,0.03]
[1738945968654,13.41184853,197.14,197.11,0.03]
[1738945969655,24.66454734,197.13,197.11,0.03]
[1738945969847,13.41184853,197.12,197.11,0.03]
[1738945970029,38.07639587,197.12,197.11,0.03]
[1738945971650,24.66454734,197.12,197.11,0.03]
[1738945971846,24.66454734,197.15,197.11,0.03]
[1738945972054,24.66454734,197.13,197.11,0.03]
[1738945972239,14.61429879,197.12,197.11,0.03]
[1738945973357,18.67269879,197.12,197.11,0.03]
[1738945973859,43.33724613,197.12,197.11,0.03]
[1738945976456,0.12549,197.11,197.1,0.063]
[1738945976660,0.12549,197.11,197.08,0.063]
[1738945976661,65.50692321,197.11,197.08,0.063]
[1738945976857,39.32737587,197.09,196.95,5.0774]
[1738945977164,24.66454734,197.01,196.95,5.0774]
[1738945977530,24.66454734,197.01,196.92,5.0782]
[1738945977531,24.66454734,196.97,196.92,5.0782]
[1738945977757,24.66454734,196.94,196.91,5.1083]
[1738945977962,24.66454734,196.93,196.91,0.03]
[1738945978538,13.41184853,196.93,196.91,0.03]
[1738945978745,38.07639587,196.93,196.91,0.03]
[1738945979160,13.41184853,196.93,196.91,0.03]
[1738945979544,38.07639587,196.93,196.91,0.03]
[1738945980471,13.41184853,196.93,196.91,0.03]
[1738945980657,24.66454734,196.96,196.91,20.03]
[1738945980859,105.96454734,197.0,196.95,20.0]
[1738945981055,24.66454734,197.03,196.96,24.66454734]
[1738945981365,24.66454734,197.05,197.01,20.0]
[1738945981666,81.3,197.09,196.97,37.7691]
[1738945981849,24.66454734,197.06,196.99,24.66454734]
[1738945982167,24.66454734,197.09,197.02,24.66454734]
[1738945982378,24.66454734,197.07,197.0,24.66454734]
[1738945982553,24.66454734,197.04,196.97,62.43364734]
[1738945982751,13.41184853,197.03,196.97,5.0769]
[1738945982961,0.12549,197.03,196.97,25.0769]
[1738945983288,24.66454734,197.01,196.97,25.0769]
[1738945983772,13.41184853,197.01,196.97,25.0769]
[1738945984746,24.66454734,196.99,196.97,20.0]
[1738945985464,24.66454734,197.0,196.97,20.0]
[1738945985974,24.66454734,197.02,196.97,25.0769]
[1738945986268,13.41184853,197.01,196.97,25.0769]
[1738945987149,24.66454734,197.04,196.97,49.74144734]
[1738945987344,4.0597,197.06,196.97,25.0769]
[1738945987345,24.66454734,197.03,196.97,25.0769]
[1738945987573,13.41184853,197.02,196.97,25.0769]
[1738945988176,24.66454734,197.04,197.0,20.0]
[1738945988346,24.66454734,197.1,197.03,24.66454734]
[1738945988546,24.66454734,197.07,197.01,20.0]
[1738945988868,6.4157,197.12,197.01,20.0]
[1738945989179,85.3578,197.16,197.02,1.0]
[1738945989180,81.3,197.16,197.02,1.0]
[1738945989341,81.3,197.16,197.04,1.0]
[1738945989760,81.3,197.16,197.03,1.0]
[1738945989761,6.2604,197.22,197.06,1.0]
[1738945989962,24.66454734,197.12,197.06,5.0745]
[1738945990252,24.66454734,197.09,197.03,5.0753]
[1738945990465,0.063,197.08,197.03,5.0753]
[1738945990747,0.063,197.08,197.06,20.0]
[1738945991167,24.66454734,197.07,197.03,5.0753]
[1738945992058,24.66454734,197.07,197.04,20.0]
[1738945992276,38.07639587,197.07,197.04,20.0]
[1738945992959,13.41184853,197.07,197.04,20.0]
[1738945993144,0.063,197.08,197.04,20.0]
[1738945993551,0.063,197.08,197.03,24.66454734]
[1738945993862,0.063,197.08,197.05,24.66454734]
[1738945994063,0.063,197.08,197.07,5.0743]
[1738945994375,0.063,197.08,197.07,29.73884734]
[1738945995246,0.063,197.08,197.07,30.73884734]
[1738945995976,0.063,197.08,197.07,29.73884734]
[1738945997386,0.063,197.08,197.07,30.73884734]
[1738945997754,0.063,197.08,197.07,32.02785785]
[1738945998485,81.3,197.18,197.15,24.66454734]
[1738945998683,24.66454734,197.22,197.15,24.66454734]
[1738945998855,24.66454734,197.17,197.1,24.66454734]
[1738945999053,24.66454734,197.17,197.07,19.04911051]
[1738945999054,24.66454734,197.16,197.09,24.66454734]
[1738945999262,24.66454734,197.17,197.12,20.0]
[1738945999673,4.1193,197.23,197.12,20.0]
[1738945999875,24.66454734,197.22,197.15,24.66454734]
[1738946000083,38.07639587,197.21,197.14,24.66454734]
[1738946000264,24.66454734,197.18,197.11,24.66454734]
[1738946000464,24.66454734,197.16,197.11,5.0733]
[1738946000667,24.66454734,197.15,197.09,5.0736]
[1738946000868,24.66454734,197.14,197.12,20.0]
[1738946001286,24.66454734,197.15,197.09,5.0736]
[1738946001462,24.66454734,197.17,197.1,24.66454734]
[1738946001663,24.66454734,197.17,197.12,20.0]
[1738946001877,13.41184853,197.17,197.12,20.0]
[1738946002058,0.063,197.18,197.13,24.66454734]
[1738946002459,0.063,197.18,197.13,5.0727]
[1738946002677,24.72754734,197.18,197.13,5.0727]
[1738946003795,0.063,197.18,197.13,5.0727]
[1738946004000,0.063,197.18,197.13,29.73724734]
[1738946004295,0.063,197.18,197.13,5.0727]
[1738946005101,0.063,197.18,197.15,24.66454734]
[1738946005266,0.063,197.18,197.14,24.66454734]
[1738946005472,0.063,197.18,197.13,29.73724734]
[1738946006270,0.063,197.18,197.13,5.0727]
[1738946006661,0.063,197.18,197.13,29.73724734]
[1738946006886,0.063,197.18,197.16,24.66454734]
[1738946007087,0.063,197.18,197.13,5.0727]
[1738946007088,0.063,197.18,197.15,24.66454734]
[1738946007283,0.063,197.18,197.14,24.66454734]
[1738946007490,0.063,197.18,197.12,24.66454734]
[1738946007871,0.063,197.18,197.13,24.66454734]
[1738946008072,0.063,197.18,197.13,29.73724734]
[1738946008786,0.063,197.18,197.13,5.0727]
[1738946009165,0.063,197.18,197.13,29.73724734]
[1738946009673,0.063,197.18,197.14,24.66454734]
[1738946009869,0.063,197.18,197.13,5.0727]
[1738946009870,0.063,197.18,197.17,24.66454734]
[1738946010079,0.063,197.18,197.16,24.66454734]
[1738946011404,0.063,197.18,197.16,29.73644734]
[1738946011898,13.47484853,197.18,197.13,5.0727]
[1738946012088,13.47484853,197.18,197.08,1.29743275]
[1738946012274,38.13939587,197.18,197.11,24.66454734]
[1738946012471,38.13939587,197.18,197.14,24.66454734]
[1738946012472,0.063,197.18,197.14,24.66454734]
[1738946012776,0.063,197.18,197.15,24.66454734]
[1738946013092,0.063,197.18,197.17,24.66454734]
[1738946013597,0.063,197.18,197.17,29.73624734]
[1738946014782,0.063,197.23,197.2,20.0]
[1738946014992,0.063,197.23,197.22,24.66454734]
[1738946015486,0.063,197.23,197.21,24.66454734]
[1738946016118,0.063,197.23,197.22,24.66454734]
[1738946016689,0.063,197.23,197.21,24.66454734]
[1738946017316,0.063,197.23,197.22,24.66454734]
[1738946017629,13.47484853,197.26,197.25,20.0]
[1738946017630,0.063,197.26,197.25,20.0]
[1738946017798,0.063,197.26,197.25,44.66454734]
[1738946017997,0.063,197.26,197.25,24.66454734]
[1738946018191,0.063,197.26,197.25,44.66454734]
[1738946019619,0.063,197.26,197.25,49.73424734]
[1738946020117,0.063,197.28,197.27,20.0]
[1738946020309,0.063,197.28,197.27,44.66454734]
[1738946022115,0.063,197.28,197.27,49.73364734]
[1738946022321,0.063,197.28,197.27,44.66454734]
[1738946022521,0.063,197.28,197.27,49.73364734]
[1738946023522,0.063,197.28,197.27,29.73364734]
[1738946025420,0.063,197.35,197.3,20.0]
[1738946025602,0.063,197.35,197.34,24.66454734]
[1738946027021,0.063,197.35,197.3,49.73264734]
[1738946027022,0.063,197.35,197.31,24.66454734]
[1738946027405,0.063,197.35,197.33,24.66454734]
[1738946027609,0.063,197.35,197.34,24.66454734]
[1738946029022,0.063,197.35,197.32,24.66454734]
[1738946029525,0.18849,197.35,197.3,24.66454734]
[1738946029701,25.80341088,197.35,197.28,24.66454734]
[1738946029907,13.41184853,197.34,197.28,24.66454734]
[1738946030226,0.063,197.35,197.31,24.66454734]
[1738946030904,0.063,197.35,197.32,24.66454734]
[1738946031217,0.063,197.35,197.31,24.66454734]
[1738946032005,0.063,197.35,197.33,24.66454734]
[1738946032203,0.063,197.35,197.34,24.66454734]
[1738946033136,0.063,197.35,197.34,29.73184734]
[1738946034729,0.063,197.35,197.34,24.66454734]
[1738946034911,0.063,197.35,197.34,29.73184734]
[1738946036218,0.063,197.35,197.33,24.66454734]
[1738946036430,0.063,197.35,197.32,24.66454734]
[1738946036932,0.063,197.35,197.34,24.66454734]
[1738946038847,17.59123853,197.34,197.33,0.03]
[1738946039141,13.53733853,197.34,197.33,0.03]
[1738946039837,13.41184853,197.34,197.33,24.69454734]
[1738946040517,13.53733853,197.34,197.33,0.03]
[1738946040718,13.41184853,197.34,197.33,0.03]
[1738946041052,13.41184853,197.34,197.33,24.69454734]
[1738946041414,0.063,197.35,197.33,24.69454734]
[1738946041616,0.063,197.35,197.34,24.66454734]
[1738946042842,0.063,197.35,197.34,29.73184734]
[1738946044029,81.363,197.38,197.34,67.06479468]
[1738946044232,0.063,197.38,197.37,24.66454734]
[1738946045345,0.063,197.38,197.37,29.73114734]
[1738946047342,0.063,197.42,197.41,24.66454734]
[1738946048136,4.1152,197.42,197.41,24.66454734]
[1738946048339,0.063,197.42,197.41,24.66454734]
[1738946048638,13.47484853,197.42,197.41,24.66454734]
[1738946049457,0.063,197.42,197.41,24.66454734]
[1738946050231,0.063,197.42,197.41,29.73004734]
[1738946050663,0.063,197.42,197.41,24.66454734]
[1738946051042,0.063,197.42,197.4,24.66454734]
[1738946051950,94.83733853,197.41,197.4,24.66454734]
[1738946052132,94.71184853,197.41,197.4,24.66454734]
[1738946052631,81.3,197.41,197.4,24.66454734]
[1738946052832,0.063,197.42,197.4,24.66454734]
[1738946052833,0.063,197.42,197.4,54.39489468]
[1738946053029,0.063,197.42,197.41,24.66454734]
[1738946053765,0.03,197.45,197.41,24.66454734]
[1738946053937,0.03,197.45,197.44,24.66454734]
[1738946054132,0.063,197.46,197.44,24.66454734]
[1738946054337,0.063,197.47,197.45,24.66454734]
[1738946054635,0.063,197.47,197.46,24.66454734]
[1738946056368,0.18849,197.47,197.46,24.66454734]
[1738946056553,0.18849,197.47,197.45,24.66454734]
[1738946056942,0.18849,197.47,197.46,24.66454734]
[1738946057260,0.063,197.47,197.46,24.66454734]
[1738946057467,0.18849,197.47,197.46,24.66454734]
[1738946057769,0.18849,197.47,197.36,1.6591]
[1738946057770,13.53733853,197.45,197.41,24.66454734]
[1738946058069,13.41184853,197.45,197.44,24.66454734]
[1738946058543,13.41184853,197.45,197.37,5.0666]
[1738946058752,13.41184853,197.45,197.44,24.66454734]
[1738946059767,13.66282853,197.45,197.44,24.66454734]
[1738946059945,13.66282853,197.44,197.41,24.66454734]
[1738946060141,231.96184458,197.44,197.43,24.66454734]
[1738946060449,0.063,197.47,197.43,24.66454734]
[1738946060637,0.063,197.47,197.46,24.66454734]
[1738946062046,0.063,197.47,197.46,29.72884734]
[1738946062644,0.063,197.48,197.46,29.72884734]
[1738946062860,0.063,197.5,197.47,49.32909468]
[1738946063162,0.063,197.5,197.49,49.32909468]
[1738946063878,0.063,197.5,197.49,54.39259468]
[1738946065775,0.063,197.52,197.49,54.39259468]
[1738946065954,0.063,197.52,197.51,24.66454734]
[1738946066546,0.063,197.55,197.51,24.66454734]
[1738946066758,0.063,197.55,197.54,24.66454734]
[1738946067449,0.063,197.55,197.54,29.72674734]
[1738946068280,81.3,197.56,197.54,29.72674734]
[1738946068479,0.03,197.59,197.55,24.66454734]
[1738946068663,13.44184853,197.59,197.58,24.66454734]
[1738946068870,0.03,197.59,197.58,24.66454734]
[1738946069970,13.69282853,197.59,197.55,24.66454734]
[1738946070172,13.69282853,197.59,197.56,24.66454734]
[1738946071081,4.0489,197.58,197.57,24.66454734]
[1738946071466,0.03,197.59,197.57,24.66454734]
[1738946071757,13.44184853,197.59,197.58,24.66454734]
[1738946072782,0.03,197.59,197.57,24.66454734]
[1738946073951,13.69282853,197.59,197.56,24.66454734]
[1738946074260,13.69282853,197.59,197.57,24.66454734]
[1738946074451,13.69282853,197.59,197.56,24.66454734]
[1738946074649,13.69282853,197.59,197.56,15.37300052]
[1738946074851,13.69282853,197.59,197.57,15.37300052]
[1738946075079,13.69282853,197.59,197.58,15.37300052]
[1738946075382,0.03,197.59,197.58,15.37300052]
[1738946078365,0.03,197.59,197.58,35.80720104]
[1738946078757,0.063,197.62,197.58,35.80720104]
[1738946078956,0.063,197.62,197.61,15.37300052]
[1738946081289,0.063,197.62,197.61,20.43340052]
[1738946081589,85.3466,197.7,197.61,20.43340052]
[1738946081768,85.3466,197.7,197.68,15.37300052]
[1738946081978,13.66282853,197.69,197.64,15.37300052]
[1738946082164,13.66282853,197.65,197.59,15.37300052]
[1738946082365,13.66282853,197.63,197.55,5.062]
[1738946082565,13.66282853,197.63,197.61,15.37300052]
[1738946082777,13.41184853,197.63,197.62,15.37300052]
[1738946086686,13.66282853,197.62,197.6,15.37300052]
[1738946086885,13.66282853,197.62,197.56,15.37300052]
[1738946086886,13.66282853,197.6,197.56,15.37300052]
[1738946087188,13.66282853,197.6,197.55,0.03]
[1738946087189,13.66282853,197.58,197.55,0.03]
[1738946087393,13.66282853,197.56,197.55,0.03]
[1738946087573,81.3,197.57,197.55,0.03]
[1738946088081,94.71184853,197.57,197.56,15.37300052]
[1738946090365,0.94918211,197.63,197.56,15.37300052]
[1738946090563,0.94918211,197.63,197.55,0.03]
[1738946090564,4.99708211,197.63,197.58,15.37300052]
[1738946090780,13.66282853,197.6,197.58,15.37300052]
[1738946092000,13.66282853,197.6,197.59,15.37300052]
[1738946093902,13.66282853,197.58,197.57,15.37300052]
[1738946094073,14.61216154,197.58,197.55,0.03]
[1738946094476,13.66282853,197.56,197.55,0.03]
[1738946094686,18.66169656,197.56,197.55,0.03]
[1738946095077,14.61229656,197.56,197.55,0.03]
[1738946095279,20.0,197.56,197.55,15.40300052]
[1738946095483,4.0483,197.61,197.55,15.40300052]
[1738946095697,0.94924152,197.6,197.58,15.37300052]
[1738946096004,13.66282853,197.59,197.57,15.37300052]
[1738946096181,13.66282853,197.59,197.58,15.37300052]
[1738946096896,0.25098,197.59,197.58,15.37300052]
[1738946098896,13.66282853,197.59,197.57,15.37300052]
[1738946099103,18.36087168,197.59,197.56,15.37300052]
[1738946099407,18.36087168,197.59,197.55,15.40300052]
[1738946099904,18.36087168,197.59,197.55,0.03]
[1738946100107,18.36087168,197.59,197.58,0.03]
[1738946100412,10.0951,197.56,197.55,0.03]
[1738946100708,30.46717777,197.56,197.55,0.03]
[1738946101079,15.09417725,197.56,197.55,0.03]
[1738946101284,44.1300063,197.56,197.55,0.03]
[1738946101607,28.75700578,197.56,197.55,0.03]
[1738946101786,27.75700578,197.56,197.55,0.03]
[1738946101991,26.75700578,197.56,197.55,0.03]
[1738946102189,27.75700578,197.56,197.55,0.03]
[1738946103114,28.75700578,197.56,197.55,0.03]
[1738946103689,44.1300063,197.56,197.55,0.03]
[1738946103903,28.75700578,197.56,197.55,0.03]
[1738946104181,13.66282853,197.56,197.55,0.03]
[1738946104694,18.66157392,197.56,197.55,0.03]
[1738946105886,17.71222853,197.56,197.55,0.03]
[1738946106283,17.71222853,197.56,197.55,15.40300052]
[1738946106718,17.71222853,197.56,197.55,0.03]
[1738946107022,1.5395,197.61,197.55,15.40300052]
[1738946107312,2.48869115,197.61,197.57,15.37300052]
[1738946107517,13.66282853,197.6,197.56,15.37300052]
[1738946107693,0.12549,197.58,197.56,15.37300052]
[1738946108021,0.25098,197.58,197.55,15.40300052]
[1738946108222,0.25098,197.58,197.56,15.37300052]
[1738946108518,13.66282853,197.56,197.55,0.03]
[1738946109024,13.66282853,197.52,197.46,15.40300052]
[1738946109326,13.53733853,197.5,197.47,15.37300052]
[1738946109527,20.0,197.53,197.46,5.0942]
[1738946109702,20.94958771,197.54,197.5,15.37300052]
[1738946109911,13.66282853,197.53,197.49,15.37300052]
[1738946110294,0.12549,197.51,197.47,15.37300052]
[1738946110502,0.12549,197.49,197.46,15.40300052]
[1738946110719,0.25098,197.49,197.46,15.40300052]
[1738946110943,0.25098,197.49,197.47,15.37300052]
[1738946111219,0.25098,197.49,197.48,15.37300052]
[1738946111885,0.25098,197.49,197.47,3.77519657]
[1738946111886,13.66282853,197.49,197.47,3.77519657]
[1738946112311,0.25098,197.49,197.47,19.14819709]
[1738946112515,0.25098,197.49,197.47,15.37300052]
[1738946112823,1.20065782,197.49,197.47,15.37300052]
[1738946113034,94.83733853,197.48,197.47,15.37300052]
[1738946114152,94.71184853,197.48,197.47,20.43700052]
[1738946114443,81.3,197.48,197.47,20.43700052]
[1738946115026,94.71184853,197.48,197.47,20.43700052]
[1738946115243,81.3,197.48,197.47,24.20686622]
[1738946116814,94.83733853,197.48,197.47,19.14286622]
[1738946117551,94.71184853,197.48,197.47,19.14286622]
[1738946117843,94.96282853,197.48,197.47,19.14286622]
[1738946119249,94.71184853,197.48,197.47,15.37300052]
[1738946119544,94.71184853,197.48,197.47,20.43700052]
[1738946120953,94.71184853,197.48,197.47,15.37300052]
[1738946122649,13.66282853,197.48,197.47,15.37300052]
[1738946122949,13.66282853,197.47,197.46,0.03]
[1738946123651,14.66282853,197.47,197.46,0.03]
[1738946124653,4.30218,197.47,197.46,0.03]
[1738946125131,34.66282853,197.45,197.44,0.03]
[1738946125460,35.61294948,197.45,197.44,0.03]
[1738946125849,20.25098,197.41,197.37,15.37300052]
[1738946126033,13.66282853,197.39,197.35,15.40300052]
[1738946126357,13.66282853,197.37,197.35,15.40300052]
[1738946126544,13.66282853,197.37,197.35,0.03]
[1738946126545,14.61323602,197.36,197.35,0.03]
[1738946126746,27.29563602,197.36,197.35,0.03]
[1738946126951,42.66863654,197.36,197.35,0.03]
[1738946127150,42.66863654,197.36,197.33,0.03]
[1738946127151,22.0,197.34,197.33,0.03]
[1738946127352,49.98651176,197.34,197.33,0.03]
[1738946127757,34.61351124,197.34,197.33,0.03]